{"text_format":"1","workbook":"xlsx","n_sheets":1,"sheets":["Лист2"],"not_rendered":{"charts":0,"images":0,"macros":1,"external_links":0,"defined_names":0,"comments":0,"pivot_tables":0},"unopened":[],"bounds":{"document_bytes":16777216,"sheet_cells":100000,"rows_first":2000,"rows_last":500,"rows_between":2000,"halvings":0,"cell_chars":16384,"cell_head_chars":4096},"cells_cut":0,"cells_raw":0,"read":"whole","date_system":"1900"}

{"sheet":"Лист2","index":0,"n_rows":8,"n_cols":19,"rows_kept":8,"cut":false,"hidden":false,"merged":[[2,0,2,8]]}
["Шина",null,null,null,null,"Маховик",null,null,null,null,"Гайка",null,null,null,"Болт"]
[]
["Необходимо быстро заполнить пустые ячейки без протягивания. Как должно получиться:"]
[]
["Шина",{"$f":"A5","v":"Шина"},{"$f":"B5","v":"Шина"},"Шина","Шина","Маховик",{"$f":"F5","v":"Маховик"},{"$f":"G5","v":"Маховик"},"Маховик","Маховик","Гайка",{"$f":"K5","v":"Гайка"},{"$f":"L5","v":"Гайка"},"Гайка","Болт",{"$f":"O5","v":"Болт"},{"$f":"P5","v":"Болт"},"Болт","Болт"]
[]
[]
[{"$f":"A1","v":"Шина"},{"$f":"IF(B1=\"\",A8,B1)","v":"Шина"},{"$f":"IF(C1=\"\",B8,C1)","v":"Шина"},"Шина","Шина","Маховик","Маховик","Маховик","Маховик","Маховик","Гайка","Гайка","Гайка","Гайка","Болт","Болт","Болт","Болт","Болт"]